Cogmind - Beta 17 @@@ ROGUE MODE // 2026.07.27 @ 14:28:56 Player: Akl Result: Destroyed by G-47 Trooper with Particle Gun Performance ------------- Evolutions (2) 1000 Regions Visited (5) 1000 Robots Destroyed (22) 110 Value Destroyed (543) 543 Prototype IDs (11) 220 Alien Tech Used (0) 0 Bonus (0) 0 TOTAL SCORE: 2873 Bonus ------- None Cogmind --------- Core Integrity 0/550 Matter 280/300 Energy 99/100 System Corruption 1% Temperature Cool (18) Movement Core (100) Ox1 Location -8/Storage Parts ------- > --- POWER (1) -------- (None) > --- PROPULSION (4) --- Aluminum Leg > --- UTILITY (4) ------ Small Storage Unit Salvage Targeting Computer Improved Targeting Computer > --- WEAPON (2) ------- (None) > --- INVENTORY (8) ---- Light Ion Engine Targeting Computer Mining Laser Peak State ------------ > --- POWER ------------ (None) > --- PROPULSION ------- Aluminum Leg Aluminum Leg Flight Unit Flight Unit > --- UTILITY ---------- Small Storage Unit Salvage Targeting Computer Improved Targeting Computer Improved Targeting Computer > --- WEAPON ----------- Light Assault Rifle Light Assault Rifle > --- INVENTORY -------- Light Ion Engine Targeting Computer Heavy Assault Rifle Mining Laser [Rating: 13] Favorites ----------- Power None Propulsion Aluminum Leg Leg Aluminum Leg Wheel Wheel Flight Unit Flight Unit Utility Small Storage Unit Device Seismic Detector Storage Small Storage Unit Processor Improved Targeting Computer Weapon Light Assault Rifle Ballistic Gun Light Assault Rifle Build | -11 -10 -9 -9 -8 -8 ------- Run | Yrd Mat Mat Min Mat Sto Slots Evolved 4 | . . 2 . 2 . Power . | . . . . . . Propulsion 2 | . . 2 . . . Utility 2 | . . . . 2 . Weapon . | . . . . . . Parts Attached 26 | 5 1 3 5 2 10 Power . | . . . . . . Engine . | . . . . . . Core . | . . . . . . Reactor . | . . . . . . Propulsion 14 | 2 1 2 2 . 7 Treads . | . . . . . . Leg 8 | 1 1 1 . . 5 Wheel 3 | 1 . 1 . . 1 Hover . | . . . . . . Flight 3 | . . . 2 . 1 Utility 6 | 1 . 1 1 2 1 Device 1 | . . 1 . . . Storage 2 | 1 . . 1 . . Processor 3 | . . . . 2 1 Hackware . | . . . . . . Protection . | . . . . . . Artifact . | . . . . . . Weapon 6 | 2 . . 2 . 2 Energy Gun . | . . . . . . Energy Cannon . | . . . . . . Ballistic Gun 6 | 2 . . 2 . 2 Ballistic Cannon . | . . . . . . Launcher . | . . . . . . Special Weapon . | . . . . . . Impact Weapon . | . . . . . . Slashing Weapon . | . . . . . . Piercing Weapon . | . . . . . . Special Melee Weapon . | . . . . . . Unidentified Prototypes . | . . . . . . Parts Lost 14 | . . . 1 . 13 Power . | . . . . . . Propulsion 9 | . . . 1 . 8 Utility 1 | . . . . . 1 Weapon 4 | . . . . . 4 Highest Loss Streak 10 | . . . 1 . 10 To Critical Strikes . | . . . . . . Average Backups 5 | 2 5 3 6 5 4 Power 1 | . 1 2 1 1 1 Propulsion . | 1 2 . . . . Utility 1 | . 2 1 2 2 1 Weapon 1 | . . . 2 2 2 Tool/Special . | . . . . . . Unused Backups 5 | . . . 2 . 3 Power 2 | . . . 1 . 1 Propulsion . | . . . . . . Utility 2 | . . . 1 . 1 Weapon 1 | . . . . . 1 Tool/Special . | . . . . . . Average Slot Usage (%) 78 | . 71 84 81 80 77 Leg 16 | . 14 22 22 18 12 Wheel 7 | . 14 21 7 . 3 Flight 9 | . . . 13 18 10 Device 1 | . . 8 4 . . Storage 10 | . 14 11 11 9 9 Processor 10 | . . . . 17 26 Ballistic Gun 20 | . 28 22 22 18 15 Peak Build Rating 13 | 5 6 8 9 11 13 Average Rating 8 | 2 5 7 8 10 11 On Entrance 6 | . 5 6 8 8 11 Avg Prop Armor Cover (%) 16 | 7 8 17 18 19 17 Naked Turns . | . . . . . . Heaviest Build 8 | 7 7 8 8 7 7 Greatest Support 20 | 10 10 20 20 8 16 Greatest Overweight (x) 1 | . . . 1 . 1 Average Overweight (x) . | . . . . . . Largest Inventory Capacity 8 | 8 8 8 8 8 8 Average Capacity 7 | 5 8 8 8 8 8 Most Carried 8 | 5 6 5 8 6 6 Average Carried 5 | 3 5 3 6 5 4 Final Capacity 8 | 8 8 8 8 8 8 Final Carried 7 | 5 6 4 7 5 3 Class Distribution -------------------- 74% | Scavenger-Mutant 25% | Mutant Dominant Class ---------------- Mutant | -10/Materials Scavenger-Mutant | -9/Materials Scavenger-Mutant | -9/Mines Scavenger-Mutant | -8/Materials Scavenger-Mutant | -8/Storage Resources | -11 -10 -9 -9 -8 -8 ----------- Run | Yrd Mat Mat Min Mat Sto Matter Collected 602 | 235 49 . 102 . 216 Remotely . | . . . . . . Salvage Created 966 | 108 90 . 131 . 637 Parts 63 | 8 4 . 13 . 38 Haulers Intercepted . | . . . . . . Recyclers Shooed 6 | . . . . . 6 Parts Field Recycled . | . . . . . . Retrieved Matter . | . . . . . . Parts Self-Destructed . | . . . . . . Prevented . | . . . . . . Parts Restored . | . . . . . . Kills | -11 -10 -9 -9 -8 -8 ------- Run | Yrd Mat Mat Min Mat Sto Combat Hostiles Destroyed 16 | . 2 . 4 . 10 Guns 16 | . 2 . 4 . 10 Classes Destroyed 6 | 2 1 . 2 . 1 Worker 1 | . . . . . 1 Tunneler 1 | 1 . . . . . Recycler 4 | 1 . . . . 3 Swarmer 6 | . . . 2 . 4 Grunt 7 | . 2 . . . 5 Sentry 3 | . . . 2 . 1 Best Kill Streak 4 | 2 2 . 4 . 4 Combat Bots Only 4 | . 2 . 4 . 4 Max Kills in Single Turn 2 | 1 1 . 1 . 2 Gunslinging 1 | . . . . . 1 Exploded . | . . . . . . Melee . | . . . . . . Uniques/NPCs Destroyed . | . . . . . . Combat | -11 -10 -9 -9 -8 -8 -------- Run | Yrd Mat Mat Min Mat Sto Hostile Shots Fired 195 | . 12 1 32 10 140 Missed 63 | . 5 . 16 4 38 Hits 132 | . 7 1 16 6 102 Projectile 132 | . 7 1 16 6 102 Critical Strikes 7 | . . . 1 1 5 Damage Taken 1874 | . 78 16 208 79 1493 Core 624 | . . . 64 15 545 Absorbed by Shields . | . . . . . . Core Remaining (%) 94 | 100 100 . 84 . . Volleys Fired 90 | 2 10 . 15 2 61 Largest 2 | 2 2 . 2 2 2 Hottest 43 | 40 40 . 40 40 43 Shots Fired 174 | 4 20 . 31 4 115 Gun 174 | 4 20 . 31 4 115 Cannon . | . . . . . . Launcher . | . . . . . . Special . | . . . . . . Kinetic 174 | 4 20 . 31 4 115 Thermal . | . . . . . . Explosive . | . . . . . . Electromagnetic . | . . . . . . Robot Hit Streak 21 | 3 6 . 5 . 21 Robot Miss Streak 4 | . 2 . 4 4 2 Penetration Max . | . . . . . . Secondary Targets 5 | . . . 2 . 3 Max Gunslinging Chain 1 | . . . 1 . 1 Shots Hit Robots 128 | 3 13 . 18 . 94 Core Hits 58 | 2 6 . 8 . 42 Critical Kills 2 | 1 . . . . 1 Critical Parts Destroyed 2 | . 1 . 1 . . Critical Strikes 4 | 1 1 . 1 . 1 Destroy 4 | 1 1 . 1 . 1 Melee Attacks . | . . . . . . Impact . | . . . . . . Slashing . | . . . . . . Piercing . | . . . . . . Sneak Attacks . | . . . . . . Combat Hostiles . | . . . . . . Follow-up Attacks . | . . . . . . Damage Inflicted 1165 | 22 104 3 146 . 890 Guns 1156 | 22 104 . 146 . 884 Cannons . | . . . . . . Explosions . | . . . . . . Melee . | . . . . . . Ramming 9 | . . 3 . . 6 Kinetic 1156 | 22 104 . 146 . 884 Thermal . | . . . . . . Explosive . | . . . . . . Electromagnetic . | . . . . . . Impact . | . . . . . . Slashing . | . . . . . . Piercing . | . . . . . . Highest Corruption 1 | . . 1 1 . 1 Average Corruption 1 | . . 1 1 . 1 Corruption Purged . | . . . . . . Corruption Blocked . | . . . . . . Effects 6 | . . . 4 . 2 Matter Fused 2 | . . . 2 . . Energy Discharges 1 | . . . . . 1 Parts Rejected 1 | . . . . . 1 Data Loss (major) 1 | . . . 1 . . Misfires 1 | . . . 1 . . Overload Shots . | . . . . . . Overflow Damage . | . . . . . . Projectiles . | . . . . . . Explosions . | . . . . . . Melee . | . . . . . . Knockbacks . | . . . . . . Impact . | . . . . . . Kinetic . | . . . . . . Secondary . | . . . . . . Self-Inflicted Damage 4 | . . 1 . . 3 Shots . | . . . . . . Rammed 2 | . . 1 . . 1 Targets Rammed 2 | . . 1 . . 1 Kicked . | . . . . . . Crushed . | . . . . . . Highest Temperature 19 | . 1 . 19 2 17 Average Temperature 5 | . 1 . 7 2 8 Received Heat Transfer 999 | . 45 9 72 45 828 Siege Activations . | . . . . . . Martial Activations . | . . . . . . Shielding Activations . | . . . . . . Robots Disrupted . | . . . . . . Combat Hostiles . | . . . . . . Robots Corrupted . | . . . . . . Combat Hostiles . | . . . . . . Parts Fried . | . . . . . . Impact Corruptions . | . . . . . . Robots Melted . | . . . . . . Combat Hostiles . | . . . . . . Parts Melted . | . . . . . . Heat Transferred . | . . . . . . Parts Sabotaged . | . . . . . . Parts Stolen . | . . . . . . Parts Stripped . | . . . . . . Power Chain Reactions . | . . . . . . Alert | -11 -10 -9 -9 -8 -8 ------- Run | Yrd Mat Mat Min Mat Sto Maximum Alert Level . | . . . . . . Low Security (%) 100 | 100 100 100 100 100 100 Level 1 . | . . . . . . Level 2 . | . . . . . . Level 3 . | . . . . . . Level 4 . | . . . . . . Level 5 . | . . . . . . High Security . | . . . . . . Max Security . | . . . . . . Peak Influence 105 | 5 40 94 72 15 105 Initial 32 | . . . 32 . . Average 32 | 2 12 40 39 2 61 Influence Increases 531 | 10 61 114 80 26 240 Destroy 0b10 Robot/C 320 | . 40 . 80 . 200 Destroy 0b10 Robot/NC 30 | 10 . . . . 20 Destroy Leader 30 | . 10 . . . 20 Successful Hack 46 | . 11 24 . 11 . Partial Spotted 15 | . . . . 15 . Lose Combat Pursuer 90 | . . 90 . . . Influence Decreases 531 | 10 61 30 164 25 241 Entered New Map 53 | . . . 52 . 1 Time Decay 348 | 10 61 30 102 25 120 Lost Part 130 | . . . 10 . 120 Squads Dispatched 5 | . 1 1 . 2 1 Investigation 2 | . . 1 . 1 . Extermination . | . . . . . . Reinforcement 3 | . 1 . . 1 1 Assault . | . . . . . . Garrison . | . . . . . . Intercept . | . . . . . . Searches Triggered . | . . . . . . Construction Impeded 1 | . . . . . 1 Haulers Reinforced . | . . . . . . Active Scanning Responses . | . . . . . . Cargo Convoy Interrupts . | . . . . . . Stealth | -11 -10 -9 -9 -8 -8 --------- Run | Yrd Mat Mat Min Mat Sto Distress Signals 4 | . 1 1 1 . 1 Communications Jammed . | . . . . . . Distress Signals . | . . . . . . Times Spotted 44 | . 4 8 4 6 22 Peak Tracking Total 7 | . 3 4 4 5 7 Tactical Retreats 2 | . . 2 . . . Traps | -11 -10 -9 -9 -8 -8 ------- Run | Yrd Mat Mat Min Mat Sto Traps Triggered 2 | . . 1 . . 1 Indirectly . | . . . . . . Trap Hack Attempts . | . . . . . . Triggered . | . . . . . . Disarmed . | . . . . . . Reprogrammed . | . . . . . . Reused . | . . . . . . Traps Extracted . | . . . . . . Installed . | . . . . . . Triggered . | . . . . . . Machines | -11 -10 -9 -9 -8 -8 ---------- Run | Yrd Mat Mat Min Mat Sto Machines Disabled . | . . . . . . Max in Single Turn . | . . . . . . Machines Repaired . | . . . . . . Machines Dismantled . | . . . . . . Machines Sabotaged . | . . . . . . Overloaded Fab Kills . | . . . . . . Hacking | -11 -10 -9 -9 -8 -8 --------- Run | Yrd Mat Mat Min Mat Sto Machines Accessed 11 | . 4 3 . 3 1 Terminals 11 | . 4 3 . 3 1 Fabricators . | . . . . . . Repair Stations . | . . . . . . Recycling Units . | . . . . . . Scanalyzers . | . . . . . . Garrison Access . | . . . . . . Total Hacks 32 | . 13 9 . 9 1 Successful 20 | . 7 5 . 7 1 Failed 11 | . 6 3 . 2 . Catastrophic 1 | . . 1 . . . Database Lockouts 1 | . . 1 . . . Manual 19 | . 8 7 . 4 . Terminals 32 | . 13 9 . 9 1 Fabricators . | . . . . . . Repair Stations . | . . . . . . Recycling Units . | . . . . . . Scanalyzers . | . . . . . . Garrison Access . | . . . . . . Terminal Hacks 11 | . 4 2 . 4 1 Prototype ID Bank 7 | . 3 1 . 3 . Open Door 1 | . . . . . 1 Locate Traps 2 | . 1 . . 1 . Zone Layout 1 | . . 1 . . . Fabricator Hacks . | . . . . . . Repair Station Hacks . | . . . . . . Recycling Unit Hacks . | . . . . . . Scanalyzer . | . . . . . . Garrison Access Hacks . | . . . . . . Unauthorized Hacks 9 | . 3 3 . 3 . Terminals 9 | . 3 3 . 3 . Botnet 9 | . 3 3 . 3 . Fabricators . | . . . . . . Repair Stations . | . . . . . . Recycling Units . | . . . . . . Scanalyzers . | . . . . . . Garrison Access . | . . . . . . Data Cores Recovered . | . . . . . . Used . | . . . . . . Hacking Detections 8 | . 4 2 . 2 . Full Trace Events 4 | . 1 1 . 2 . Feedback Events 1 | . . 1 . . . Corruption 1 | . . 1 . . . Feedback Blocked . | . . . . . . Robot Schematics Acquired . | . . . . . . Robots Built . | . . . . . . Authchips . | . . . . . . Time . | . . . . . . Total Robot Build Rating . | . . . . . . Part Schematics Acquired . | . . . . . . Parts Built . | . . . . . . Authchips . | . . . . . . Time . | . . . . . . Total Part Build Rating . | . . . . . . Part Studies Acquired . | . . . . . . Parts Repaired . | . . . . . . Time . | . . . . . . Parts Recycled . | . . . . . . Recycled Matter . | . . . . . . Retrieved Matter . | . . . . . . Retrieved Components . | . . . . . . Parts Scanalyzed . | . . . . . . Part Schematics Acquired . | . . . . . . Parts Damaged . | . . . . . . Bothacking | -11 -10 -9 -9 -8 -8 ------------ Run | Yrd Mat Mat Min Mat Sto Used RIF Installer . | . . . . . . Robots Hacked . | . . . . . . Non-combat . | . . . . . . Combat . | . . . . . . Robot Hacks Applied . | . . . . . . Relay Couplers Released . | . . . . . . Fabnet Peak Effective % . | . . . . . . Robots Rewired . | . . . . . . Allies Hacked . | . . . . . . Hacks Repelled . | . . . . . . Allies | -11 -10 -9 -9 -8 -8 -------- Run | Yrd Mat Mat Min Mat Sto Total Allies . | . . . . . . Largest Group . | . . . . . . Highest-Rated Group . | . . . . . . Highest-Rated Ally . | . . . . . . Total Orders . | . . . . . . Ally Attacks . | . . . . . . Total Damage . | . . . . . . Kills . | . . . . . . Allies Corrupted . | . . . . . . Allies Melted . | . . . . . . Intel | -11 -10 -9 -9 -8 -8 ------- Run | Yrd Mat Mat Min Mat Sto Active Infowar (turns) 177 | . . 83 94 . . Seismic 177 | . . 83 94 . . Robot Analysis Total . | . . . . . . Derelict Logs Recovered 1 | . . . 1 . . Drone Launches . | . . . . . . Drone Recoveries . | . . . . . . Exploration | -11 -10 -9 -9 -8 -8 ------------- Run | Yrd Mat Mat Min Mat Sto Turns Passed 990 | 42 190 102 220 160 276 Spaces Moved 799 | 36 115 121 256 153 118 Core 49 | 29 . . . . 20 Treads . | . . . . . . Legs 102 | 7 89 . . . 6 Wheels 211 | . 26 121 33 . 31 Hover . | . . . . . . Flight 437 | . . . 223 153 61 Fastest Speed 50 | 50 80 80 57 57 57 Average Speed 73 | 63 110 80 62 57 80 Slowest Speed 145 | 120 120 80 145 57 130 Overloaded Moves . | . . . . . . Propulsion Burnouts . | . . . . . . Robots Hopped 3 | . . . . 3 . Potential Cave-ins . | . . . . . . Cave-ins Triggered . | . . . . . . Exploration Rate (%) 25 | 4 22 27 51 19 28 Regions Visited 5 Branch Regions 2 Pre-discovered Areas 2 | . . . 2 . . Known Exits Taken . | . . . . . . Unknown Exits Taken 5 | 1 1 1 1 1 . Scrap Searched . | . . . . . . Spaces Dug . | . . . . . . Terrain Destroyed . | . . . . . . Melee . | . . . . . . Projectile . | . . . . . . AOE . | . . . . . . Terrain Rammed . | . . . . . . Walls Destroyed . | . . . . . . Machines Disabled . | . . . . . . Actions | -11 -10 -9 -9 -8 -8 --------- Run | Yrd Mat Mat Min Mat Sto Total 1052 | 52 161 125 293 219 202 Wait 113 | . 34 . 5 66 8 Move 788 | 35 114 120 255 146 118 Hop 3 | . . . . 3 . Pick Up 17 | 10 1 1 5 . . Fast Attach 9 | . . . 3 . 6 Attach 13 | 5 . 3 . 2 3 Detach 1 | . . . 1 . . Swap 6 | . 1 . 2 . 3 Drop 10 | . 1 . 7 . 2 Fire 90 | 2 10 . 15 2 61 Melee . | . . . . . . Ram 2 | . . 1 . . 1 Kick . | . . . . . . Crush . | . . . . . . Escape Stasis . | . . . . . . Rewire . | . . . . . . Trap . | . . . . . . Miscellaneous . | . . . . . . Route ------- -11/Scrapyard -10/Materials -9/Materials -9/Mines -8/Materials -8/Storage History --------- Turn | Location | Event 11 | -11/Scrapyard | Discovered new exit (range 16) 43 | -11/Scrapyard | Entered Materials 216 | -10/Materials | Discovered new exit (range 10) 233 | -10/Materials | Entered another Materials area 233 | -9/Materials | Evolved 2 slots: Propulsion x2 306 | -9/Materials | Central database locked down 327 | -9/Materials | Discovered new exit (range 6) 335 | -9/Materials | Entered Mines 338 | -9/Mines | Met a Derelict bent on vengeance 452 | -9/Mines | Learned location of Storage (-8) 475 | -9/Mines | Assembled infested the area 482 | -9/Mines | Learned location of Zion (-6) 517 | -9/Mines | Found a hidden stash of uninstalled traps 533 | -9/Mines | Build established: Scavenger-Mutant 543 | -9/Mines | Discovered new exit (range 12) 555 | -9/Mines | Entered Materials 555 | -8/Materials | Evolved 2 slots: Utility x2 708 | -8/Materials | Discovered new exit (range 14) 715 | -8/Materials | Entered Storage 968 | -8/Storage | Core integrity fell below 50% 984 | -8/Storage | Core integrity fell below 20% 991 | -8/Storage | Destroyed by G-47 Trooper with Particle Gun Last Messages --------------- 00951_ G-47 Trooper suffers critical hit (Burn). 00951_ G-47 Trooper destroyed. 00951_ Flight Unit destroyed. 00953_ K-01 Serf collects debris. 00953_ Lgt. Assault Rifle destroyed. 00957_ K-01 Serf collects debris. 00965_ Hvy. Assault Rifle destroyed. 00965_ Imp. Targeting Computer destroyed. 00966_ Acquired 20 matter. 00967_ K-01 Serf collects debris. 00976_ M-13 Machinist repairs G-47 Trooper. 00978_ Slammed into G-47 Trooper. 00981_ Acquired Aluminum Leg. 00984_ Critical hit (Burn: +37). 00984_ U-05 Engineer destroyed. 00985_ R-06 Scavenger collects Transport Network Coupler. 00988_ R-06 Scavenger collects Imp. Heat Sink. 00989_ System corrupted: Aluminum Leg rejected. 00991_ R-06 Scavenger collects Adv. Beam Rifle. Map ----- +----------------------------------------------------+ | ?????????????????????????????????????????????????? | | ?????????????????????????????????????????????????? | | ?????????????????????????????????????????????????? | | ?????????????????????????????????????????????????? | | ?????????????????????????????????????????????????? | | ?????????????????????????????????????????????????? | | ?????????????????????????????????????????????????? | | ?????????????????????????????????????????????????? | | ?????????????????????????????????????????????????? | | ?????????????????????????????????????????????????? | | ???????????????????????? ???????????????????????? | | ???????????????????????? ???????????????????????? | | ???????????????????????? ???????????????????????? | | ???????????????????????# ???????????????????????? | | ???????????????????????+ ???????????????????????? | | ???????????????????????# #??????????????????????? | | ???????????????????????# #??????????????????????? | | ???????????????????????# #??????????????????????? | | ???????????????????????+ #??????????????????????? | | ???????????????????????#a +??????????????????????? | | ???????????????##??????# #??????????????????????? | | ???????????##### ?????# #????????????????#####?? | | ??????????? T????# #????????????????#! !#?? | | ???????????? "" ???# #????????????????#! !#?? | | ?????????????? ???# #?????###????????#! !#?? | | ???????????????# ??## @####### ####?????#! !#?? | | ????????????????# ### # #????### ##?? | | ????????????????# ^ # #????#T #?? | | ???????????"????#^ ^ =; """ """ #######+###?? | | ??????????"" #^ =^^ # """ """%+%!% [ [#???? | | ??????????"" k ^!*^% # """ """*#####!* #???? | | ???????# #^ "T%* = # """ """=#???#%**#???? | | ???????????? ?# """Ygg= # """ """ #???#*%[#???? | | ????????????????# g*g% # #???#% !#???? | | ????????????????# r%m[ ###########???# *=#???? | | ????????????????# ####g######??????????#[! #???? | | ????????????????##### % #??????????# * #???? | | ????????????????????# """" #??????????# #???? | | ????????????????????# ""???????????????#^ ^#???? | | ????????????????????# ""????????????????#^^^#???? | | ????????????????????# "?????????????????# +???? | | ????????????????????# "?????????????????# #???? | | ????????????????????# "?????????????????# #???? | | ????????????????????# ?????????????????# #???? | | ????????????????????####?????????????????# #???? | | ?????????????????????????????????????????# #???? | | ?????????????????????????????????????????# #???? | | ?????????????????????????????????????????# ##### | | ?????????????????????????????????????????# # | | ?????????????????????????????????????????# # | +----------------------------------------------------+ Best States ------------- Heat Dissipation 31 Energy Generation 5 Energy Capacity 100 Matter Stores 300 Matter Capacity 300 Sight Range 16 Terrain Scan Density 10 Evasion (%) 58 Targeting Accuracy 12 Salvage Targeting 1 Item Schematics ----------------- None Robot Schematics ------------------ None Fabricated ------------ Nothing Repaired ---------- Nothing Studied --------- None Alien Tech Used ----------------- None Achievements -------------- None Challenges ------------ None Game ------ Seed SeismicGravjetMatterbank Manual? 0 Play Time 00:16:13 Cumulative 50.3 hours Start 2026.07.27 @ 14:08:46 End 2026.07.27 @ 14:28:56 Sessions 1 Manual Loads 0 Difficulty Rogue Special Mode None Game No. 86 Rogue 86 Adventurer 0 Explorer 0 Win Type - Total 0 Types 0/0/0/0/0/0/0/0/0/0 Lore% 28 Gallery% 33 Achievement% 27 Wizard Run 0 Options --------- Layout 1 ASCII 0 Keyboard 0 Movement Numpad Keybinds 0 Fullscreen 2 Font 24/Smallcaps Map View 50x35 Zoom Use 0% Tactical HUD 1 Map Filters NONE Filters NONE Steam 1 RUN: 6ff92cb9-3449-4ab0-8033-80324ea4db4e